bitfinex/quotes_SOLUSD_20250313
["timestamp","ask_amount","ask_price","bid_price","bid_amount"]
[1741872700384,0.063,126.72,126.71,10.22216157]
[1741872700568,0.063,126.72,126.71,10.08]
[1741872700983,0.063,126.72,126.71,332.44558474]
[1741872701179,0.063,126.72,126.71,358.9872336]
[1741872701582,0.063,126.72,126.71,282.44558474]
[1741872701782,56.0702616,126.72,126.69,80.774]
[1741872701974,56.0072616,126.71,126.69,80.774]
[1741872702177,0.063,126.72,126.68,56.0072616]
[1741872702389,0.063,126.72,126.69,56.0072616]
[1741872702891,0.063,126.72,126.67,56.0072616]
[1741872703195,0.063,126.72,126.69,56.0072616]
[1741872703489,0.063,126.72,126.68,56.0072616]
[1741872703694,76.0702616,126.72,126.67,56.0072616]
[1741872703875,20.063,126.72,126.67,56.0072616]
[1741872704080,0.063,126.72,126.69,56.0072616]
[1741872704973,0.063,126.72,126.71,56.29158474]
[1741872705174,0.063,126.74,126.73,68.933972]
[1741872705485,0.063,126.74,126.73,342.19807769]
[1741872705683,0.063,126.74,126.73,341.0152336]
[1741872706000,0.063,126.78,126.76,0.14216157]
[1741872706179,0.063,126.78,126.77,66.0672616]
[1741872706501,0.063,126.78,126.77,10.20216157]
[1741872706703,0.063,126.78,126.75,56.0072616]
[1741872706997,0.063,126.78,126.76,56.0072616]
[1741872707199,0.063,126.78,126.74,66.0672616]
[1741872707200,20.0,126.76,126.74,66.0672616]
[1741872707409,56.0072616,126.77,126.71,0.14216157]
[1741872707611,56.0072616,126.76,126.71,10.04]
[1741872707894,76.0072616,126.77,126.71,66.0472616]
[1741872708407,76.0072616,126.77,126.71,10.04]
[1741872708408,56.0072616,126.74,126.71,10.04]
[1741872708699,56.0072616,126.74,126.69,56.0072616]
[1741872708884,56.0072616,126.73,126.68,56.0072616]
[1741872709087,27.6133,126.75,126.67,56.0072616]
[1741872709088,56.0072616,126.72,126.67,56.0072616]
[1741872709511,83.6205616,126.75,126.69,56.0072616]
[1741872709670,83.6205616,126.75,126.7,56.0072616]
[1741872709671,7.8895,126.75,126.7,56.0072616]
[1741872709872,20.06802314,126.78,126.73,56.0072616]
[1741872709873,0.063,126.78,126.73,56.0072616]
[1741872710090,0.063,126.78,126.77,56.14942317]
[1741872710290,0.063,126.78,126.77,301.0752336]
[1741872710592,0.063,126.78,126.77,338.43284634]
[1741872710793,0.063,126.78,126.77,364.9707952]
[1741872711192,0.063,126.81,126.8,70.28432314]
[1741872711494,0.063,126.9,126.8,70.28432314]
[1741872711495,82.6,127.01,126.87,20.14216157]
[1741872711670,7.8753,126.98,126.93,56.0072616]
[1741872711882,102.2749,127.07,126.96,20.0]
[1741872712097,7.8702,127.06,127.01,56.0072616]
[1741872712303,146.4768616,127.07,127.01,56.0072616]
[1741872712487,7.8696,127.07,126.98,0.14216157]
[1741872712689,56.0072616,127.06,127.01,56.0072616]
[1741872712907,10.14,127.07,126.96,135.3]
[1741872713098,56.0072616,127.02,126.97,56.29158474]
[1741872713409,20.0,126.99,126.97,56.29158474]
[1741872713602,20.0,127.02,126.94,56.0072616]
[1741872713788,0.14216157,127.04,126.93,0.28432314]
[1741872714105,56.0072616,126.98,126.92,135.3]
[1741872714306,0.14216157,127.05,126.93,0.28432314]
[1741872714490,18.79181043,127.06,126.94,74.9412336]
[1741872714690,56.0072616,126.98,126.94,135.44216157]
[1741872714891,56.0072616,126.97,126.91,66.28942317]
[1741872715094,56.0072616,126.94,126.88,135.3]
[1741872715297,56.0072616,126.9,126.85,56.0072616]
[1741872715550,0.5,126.96,126.8,266.074]
[1741872715551,56.0072616,126.88,126.8,266.074]
[1741872715684,56.0072616,126.87,126.82,56.0072616]
[1741872715893,56.0072616,126.86,126.81,56.0072616]
[1741872716089,20.0,126.87,126.81,56.0072616]
[1741872716297,56.0072616,126.98,126.87,0.14216157]
[1741872716498,20.25604886,126.97,126.91,56.0072616]
[1741872716805,1.6064,126.97,126.89,0.28432314]
[1741872717003,7.8733,127.01,126.94,56.0072616]
[1741872717215,28.5675676,127.01,126.94,10.36]
[1741872717386,56.0072616,126.98,126.94,10.36]
[1741872717711,17.62295452,126.98,126.94,10.36]
[1741872717907,20.0,126.94,126.92,56.0072616]
[1741872718086,56.0072616,126.93,126.91,11.9599456]
[1741872718285,56.0072616,126.92,126.88,11.9599456]
[1741872718782,56.0072616,126.98,126.93,56.0072616]
[1741872718983,7.8733,127.01,126.93,18.64964886]
[1741872719180,56.0072616,126.99,126.94,56.0072616]
[1741872719387,0.14216157,127.0,126.92,10.38]
[1741872719704,0.14216157,127.0,126.88,10.56216157]
[1741872719912,56.0072616,126.93,126.88,66.56942317]
[1741872720098,56.0072616,126.93,126.88,10.56216157]
[1741872720292,56.0072616,126.9,126.84,0.14216157]
[1741872720493,10.4,126.95,126.85,18.79181043]
[1741872720697,7.8784,126.93,126.85,74.79907203]
[1741872720899,56.0072616,126.91,126.85,56.0072616]
[1741872721100,56.0072616,126.9,126.84,56.0072616]
[1741872721401,7.8784,126.93,126.85,66.4272616]
[1741872721605,7.8764,126.96,126.9,56.0072616]
[1741872721794,7.8752,126.98,126.91,56.0072616]
[1741872721995,56.0072616,126.96,126.91,56.0072616]
[1741872722212,8.01736157,126.98,126.86,266.074]
[1741872722213,56.0072616,126.95,126.88,18.79181043]
[1741872722407,56.0072616,126.93,126.88,56.0072616]
[1741872722707,56.0072616,126.94,126.88,56.0072616]
[1741872722908,63.8850616,126.94,126.88,56.0072616]
[1741872723116,20.0,126.94,126.86,216.21616157]
[1741872723414,47.83304767,127.03,126.88,50.0]
[1741872723595,56.0072616,126.98,126.92,56.0072616]
[1741872723794,56.0072616,126.97,126.91,56.0072616]
[1741872724017,56.0072616,126.92,126.87,10.5]
[1741872724213,0.28432314,126.94,126.83,10.6]
[1741872724512,56.0072616,126.86,126.77,399.9672616]
[1741872724822,19.14964886,126.92,126.77,399.9672616]
[1741872724823,47.45853751,126.89,126.8,50.0]
[1741872725008,103.40384619,126.91,126.85,56.0072616]
[1741872725189,95.68551267,126.88,126.82,56.0072616]
[1741872725394,56.0072616,126.87,126.82,56.0072616]
[1741872725717,7.8796,126.91,126.86,56.0072616]
[1741872725923,15.89662332,126.9,126.85,56.0072616]
[1741872726105,56.0072616,126.86,126.81,56.14942317]
[1741872726288,56.0072616,126.87,126.81,56.14942317]
[1741872726491,15.89662332,126.9,126.83,18.933972]
[1741872726815,15.89662332,126.9,126.87,0.14216157]
[1741872727015,15.89662332,126.9,126.82,50.0]
[1741872727016,79.78418492,126.9,126.82,7.885]
[1741872727230,63.8869616,126.91,126.85,56.0072616]
[1741872727527,56.0072616,126.87,126.81,191.3072616]
[1741872727694,56.0072616,126.87,126.81,56.0072616]
[1741872727892,56.0072616,126.83,126.77,0.14216157]
[1741872728124,56.0072616,126.82,126.77,56.0072616]
[1741872728306,56.0072616,126.83,126.77,56.0072616]
[1741872728703,7.8864,126.8,126.75,66.5872616]
[1741872729102,7.8864,126.8,126.75,56.0072616]
[1741872729296,56.0072616,126.79,126.74,10.58]
[1741872729505,56.0072616,126.78,126.74,10.58]
[1741872730224,56.0072616,126.79,126.74,10.58]
[1741872730574,63.8923616,126.82,126.76,56.0072616]
[1741872730835,82.6,126.83,126.74,18.61216157]
[1741872730836,7.8864,126.8,126.75,56.0072616]
[1741872731119,7.8864,126.8,126.74,10.58]
[1741872731120,56.0072616,126.79,126.74,10.58]
[1741872731340,56.0072616,126.81,126.75,56.0072616]
[1741872731631,56.0072616,126.76,126.74,10.58]
[1741872731848,56.0072616,126.76,126.71,0.063]
[1741872732023,18.933972,126.75,126.71,0.063]
[1741872732208,94.9412336,126.72,126.71,0.063]
[1741872732528,18.79181043,126.71,126.63,56.0072616]
[1741872732702,56.0072616,126.68,126.63,56.0072616]
[1741872732903,88.7209,126.74,126.67,56.0072616]
[1741872733118,56.0072616,126.72,126.67,56.0072616]
[1741872733315,20.0,126.76,126.68,0.14216157]
[1741872733724,18.933972,126.75,126.66,10.56]
[1741872733922,56.0072616,126.69,126.63,56.0072616]
[1741872734119,56.0072616,126.68,126.62,56.0072616]
[1741872734503,56.0072616,126.67,126.61,56.0072616]
[1741872734835,56.0072616,126.64,126.58,0.03]
[1741872735130,56.0072616,126.64,126.58,56.0372616]
[1741872735334,56.0072616,126.61,126.58,0.03]
[1741872735510,56.0072616,126.6,126.58,0.03]
[1741872735919,56.0072616,126.61,126.58,0.03]
[1741872736224,56.0072616,126.6,126.58,0.03]
[1741872736425,74.9412336,126.59,126.58,0.03]
[1741872736812,82.8407336,126.59,126.58,0.03]
[1741872737414,56.0072616,126.54,126.53,0.03]
[1741872737614,74.9412336,126.54,126.45,0.03]
[1741872737817,56.0072616,126.47,126.45,0.03]
[1741872738212,18.933972,126.49,126.45,0.03]
[1741872738213,56.0072616,126.48,126.45,0.03]
[1741872738414,56.0072616,126.47,126.45,0.03]
[1741872738730,20.0,126.49,126.45,0.03]
[1741872738731,165.4488336,126.46,126.45,0.03]
[1741872738909,138.6072616,126.46,126.45,0.03]
[1741872739109,165.4488336,126.46,126.45,0.03]
[1741872739334,138.6072616,126.46,126.45,0.03]
[1741872739743,56.0072616,126.47,126.45,0.03]
[1741872740109,56.0072616,126.5,126.45,0.03]
[1741872740314,138.6072616,126.51,126.46,56.0072616]
[1741872740608,82.6,126.51,126.46,56.0072616]
[1741872741036,18.64964886,126.54,126.47,56.0072616]
[1741872741231,76.0072616,126.48,126.45,0.03]
[1741872741424,56.0072616,126.46,126.45,0.03]
[1741872741933,20.0,126.43,126.4,0.03]
[1741872742142,74.9412336,126.41,126.4,0.03]
[1741872742726,74.9412336,126.41,126.27,235.8719]
[1741872742727,156.8,126.37,126.28,27.7161]
[1741872742931,56.0072616,126.36,126.31,56.0072616]
[1741872743128,56.0072616,126.35,126.29,56.0072616]
[1741872743329,56.0072616,126.34,126.28,63.9261616]
[1741872743638,56.0072616,126.38,126.32,56.0072616]
[1741872743819,56.0072616,126.37,126.32,56.0072616]
[1741872744014,56.0072616,126.36,126.3,56.0072616]
[1741872744343,18.933972,126.38,126.3,56.0072616]
[1741872744344,20.0,126.37,126.3,56.0072616]
[1741872744653,56.0072616,126.34,126.28,63.9261616]
[1741872744826,56.0072616,126.34,126.27,10.52]
[1741872744827,56.0072616,126.31,126.26,7.92]
[1741872745221,56.0072616,126.33,126.28,56.0072616]
[1741872745564,56.0072616,126.32,126.27,56.0072616]
[1741872745725,56.0072616,126.31,126.26,7.92]
[1741872746122,56.0072616,126.31,126.25,56.0072616]
[1741872746430,56.0072616,126.32,126.26,56.0072616]
[1741872746613,56.0072616,126.31,126.25,56.0072616]
[1741872746818,56.0072616,126.31,126.26,7.9201]
[1741872747028,56.0072616,126.34,126.28,56.0072616]
[1741872747326,82.6,126.36,126.23,10.62]
[1741872747327,56.0072616,126.3,126.23,10.62]
[1741872747629,56.0072616,126.27,126.24,7.9214]
[1741872747828,56.0072616,126.29,126.24,7.9214]
[1741872748030,56.0072616,126.27,126.23,7.9218]
[1741872748348,56.0072616,126.31,126.25,56.0072616]
[1741872748658,56.0072616,126.3,126.25,56.0072616]
[1741872748833,56.0072616,126.29,126.23,63.9290616]
[1741872749025,56.0072616,126.28,126.27,0.063]
[1741872749222,56.0072616,126.29,126.27,0.063]
[1741872749442,138.6072616,126.32,126.27,0.063]
[1741872749636,0.14216157,126.36,126.3,56.0072616]
[1741872749945,56.0072616,126.33,126.27,10.703]
[1741872750140,56.0072616,126.33,126.28,56.0072616]
[1741872750359,56.0072616,126.34,126.28,56.0072616]
[1741872750534,56.0072616,126.35,126.29,56.0072616]
[1741872750920,0.14216157,126.37,126.3,63.9248616]
[1741872751128,56.0072616,126.36,126.3,7.9176]
[1741872751645,82.6,126.38,126.3,7.9176]
[1741872751646,138.6072616,126.38,126.33,56.0072616]
[1741872751849,56.0072616,126.38,126.32,56.0072616]
[1741872752148,0.28432314,126.39,126.32,56.0072616]
[1741872752322,56.0072616,126.38,126.32,56.0072616]
[1741872752521,63.9174616,126.42,126.32,56.0072616]
[1741872752522,88.9576,126.44,126.36,56.0072616]
[1741872752725,82.6,126.44,126.39,56.0072616]
[1741872752945,82.6,126.44,126.42,56.0072616]
[1741872753145,56.0072616,126.48,126.43,56.0072616]
[1741872753350,0.14216157,126.48,126.4,7.9112]
[1741872753554,56.0072616,126.45,126.39,66.6872616]
[1741872753845,18.79181043,126.47,126.39,56.0072616]
[1741872753846,56.0072616,126.44,126.39,56.0072616]
[1741872754047,56.0072616,126.44,126.38,10.7]
[1741872754048,56.0072616,126.41,126.38,10.7]
[1741872754230,56.0072616,126.42,126.38,10.7]
[1741872754427,56.0072616,126.43,126.38,10.7]
[1741872754633,56.0072616,126.43,126.38,66.7072616]
[1741872754829,56.0072616,126.42,126.38,10.7]
[1741872755045,56.0072616,126.41,126.35,56.0072616]
[1741872755252,56.0072616,126.42,126.36,56.0072616]
[1741872755459,18.79181043,126.44,126.39,56.0072616]
[1741872755460,56.0072616,126.44,126.39,56.0072616]
[1741872755665,56.0072616,126.43,126.37,56.0072616]
[1741872755828,56.0072616,126.42,126.37,56.0072616]
[1741872756034,56.0072616,126.43,126.37,56.0072616]
[1741872756659,56.0072616,126.41,126.36,56.0072616]
[1741872756941,56.0072616,126.41,126.28,145.6017616]
[1741872756942,56.0072616,126.37,126.3,56.0072616]
[1741872757140,56.0072616,126.34,126.28,56.0072616]
[1741872757539,56.0072616,126.32,126.27,0.063]
[1741872757739,20.0,126.32,126.27,0.063]
[1741872757958,56.0072616,126.31,126.27,0.063]
[1741872758337,56.0072616,126.29,126.27,0.063]
[1741872759766,94.9412336,126.28,126.27,0.063]
[1741872760065,150.9484952,126.28,126.27,0.063]
[1741872760232,94.9412336,126.28,126.27,0.063]
[1741872760433,76.0072616,126.28,126.27,0.063]
[1741872760728,94.9412336,126.28,126.27,0.063]
[1741872760928,76.0072616,126.28,126.27,0.063]
[1741872761366,56.0072616,126.29,126.27,0.063]
[1741872761553,56.0072616,126.28,126.22,2.8716738]
[1741872761756,56.0072616,126.26,126.22,2.8716738]
[1741872762057,76.0072616,126.24,126.22,2.8716738]
[1741872762257,74.9412336,126.23,126.22,2.8716738]
[1741872763045,82.8632336,126.23,126.22,2.8716738]
[1741872763251,74.9412336,126.23,126.22,2.8716738]
[1741872763454,82.8632336,126.23,126.22,2.8716738]
[1741872763853,165.4632336,126.23,126.22,2.8716738]
[1741872764149,138.6072616,126.23,126.22,2.8716738]
[1741872764362,146.5292616,126.23,126.22,2.8716738]
[1741872764858,165.4632336,126.23,126.22,2.8716738]
[1741872765058,165.4632336,126.23,126.22,7.38e-05]
[1741872765252,82.8632336,126.23,126.22,7.38e-05]
[1741872765647,7.922,126.23,126.22,7.38e-05]
[1741872765854,7.9203,126.26,126.22,7.38e-05]
[1741872766058,56.0072616,126.27,126.22,7.38e-05]
[1741872766256,0.28432314,126.28,126.22,56.0073354]
[1741872766564,56.0072616,126.28,126.23,56.0072616]
[1741872766766,26.71021043,126.29,126.23,56.0072616]
[1741872767059,56.0072616,126.31,126.25,63.9274616]
[1741872767235,56.0072616,126.33,126.27,56.0072616]
[1741872767439,63.9221616,126.35,126.29,56.0072616]
[1741872767749,56.0072616,126.35,126.29,56.0072616]
[1741872767964,56.0072616,126.36,126.3,56.0072616]
[1741872768268,56.0072616,126.37,126.32,56.0072616]
[1741872768466,8.05426157,126.39,126.32,56.0072616]
[1741872768649,56.0072616,126.37,126.32,56.0072616]
[1741872768855,74.9412336,126.36,126.3,56.0072616]
[1741872769059,56.0072616,126.35,126.3,56.0072616]
[1741872769373,56.0072616,126.36,126.3,63.9247616]
[1741872769544,96.5653,126.41,126.33,56.0072616]
[1741872769871,96.5653,126.41,126.3,56.0072616]
[1741872769872,56.0072616,126.35,126.3,56.0072616]
[1741872770341,0.28432314,126.37,126.31,56.0072616]
[1741872770540,0.28432314,126.37,126.28,10.52]
[1741872770766,56.0072616,126.33,126.28,66.5272616]
[1741872770964,0.28432314,126.37,126.28,66.5272616]
[1741872770965,56.0072616,126.34,126.28,66.5272616]
[1741872771146,63.9239616,126.32,126.26,56.0072616]
[1741872771351,56.0072616,126.31,126.26,10.52]
[1741872771750,56.0072616,126.31,126.22,66.5272616]
[1741872771751,56.0072616,126.28,126.22,66.5272616]
[1741872771959,56.0072616,126.27,126.21,56.0072616]
[1741872772352,56.0072616,126.26,126.2,66.5272616]
[1741872772665,56.0072616,126.25,126.2,10.52]
[1741872772973,20.0,126.26,126.21,56.0072616]
[1741872773150,56.0072616,126.27,126.21,56.0072616]
[1741872773466,56.0072616,126.27,126.22,56.0072616]
[1741872773651,56.0072616,126.27,126.21,56.0072616]
[1741872773961,63.9268616,126.27,126.21,56.0072616]
[1741872774143,56.0072616,126.26,126.21,56.0072616]
[1741872774764,56.0072616,126.27,126.21,56.0072616]
[1741872774961,82.6,126.3,126.24,56.0072616]
[1741872775151,138.6072616,126.3,126.24,56.0072616]
[1741872775754,146.5251616,126.3,126.22,7.9226]
[1741872776063,90.5179,126.3,126.24,56.0072616]
[1741872776273,56.0072616,126.29,126.24,56.0072616]
[1741872776452,90.5179,126.3,126.24,56.0072616]
[1741872776659,56.0072616,126.28,126.23,56.0072616]
[1741872776854,56.0072616,126.27,126.2,18.3633]
[1741872777060,56.0072616,126.26,126.2,66.4472616]
[1741872777262,56.0072616,126.25,126.2,66.4472616]
[1741872777471,56.0072616,126.25,126.2,74.3711616]
[1741872777781,56.0072616,126.26,126.2,74.3711616]
[1741872777950,63.9274616,126.26,126.2,74.3711616]
[1741872778151,63.9274616,126.26,126.2,66.4472616]
[1741872778466,56.0072616,126.25,126.2,10.44]
[1741872778646,56.0072616,126.25,126.19,38.87287459]
[1741872778851,56.0072616,126.25,126.2,56.0072616]
[1741872779073,56.0072616,126.26,126.2,56.0072616]
[1741872779367,7.9195,126.27,126.2,63.9311616]
[1741872779571,138.6072616,126.28,126.22,56.0072616]
[1741872779774,82.6,126.28,126.24,56.0072616]
[1741872780071,56.0072616,126.28,126.22,56.0072616]
[1741872780373,84.1714,126.33,126.25,56.0072616]
[1741872780546,84.1714,126.33,126.26,56.0072616]
[1741872780752,140.1786616,126.33,126.27,56.0072616]
[1741872780969,56.0072616,126.34,126.28,56.0072616]
[1741872781166,7.9145,126.35,126.28,56.0072616]
[1741872781368,56.0072616,126.32,126.26,56.0072616]
[1741872781669,56.0072616,126.3,126.25,56.0072616]
[1741872781869,56.0072616,126.29,126.23,74.3491616]
[1741872782070,20.0,126.3,126.24,56.0072616]
[1741872782275,56.0072616,126.27,126.21,56.0072616]
[1741872782477,56.0072616,126.24,126.18,56.0702616]
[1741872782669,20.0,126.22,126.18,0.063]
[1741872782970,20.0,126.22,126.15,0.063]
[1741872782971,6.39082314,126.18,126.15,0.063]
[1741872783162,18.933972,126.16,126.15,0.063]
[1741872783362,165.4676336,126.16,126.15,0.063]
[1741872783576,20.0,126.13,126.03,7.9346]
[1741872783748,76.0072616,126.13,126.07,56.0072616]
[1741872783953,20.0,126.12,126.03,224.0086]
[1741872784155,56.0072616,126.11,126.05,56.0072616]
[1741872784361,20.0,126.12,126.08,56.0072616]
[1741872784577,56.0072616,126.15,126.09,56.0072616]
[1741872784753,56.0072616,126.17,126.12,56.0072616]
[1741872784959,82.6,126.2,126.12,0.28432314]
[1741872785172,6.79776157,126.23,126.15,56.0072616]
[1741872785363,6.79776157,126.23,126.09,1.1888125]
[1741872785364,6.6556,126.23,126.09,1.1888125]
[1741872785564,0.14216157,126.21,126.15,0.063]
[1741872785763,56.0072616,126.19,126.15,0.063]
[1741872786071,0.03,126.18,126.17,56.0072616]
[1741872786262,0.03,126.18,126.15,0.063]
[1741872786658,0.03,126.18,126.16,18.933972]
[1741872786863,6.0411,126.28,126.2,0.28432314]
[1741872787061,90.5165,126.32,126.22,18.933972]
[1741872787253,20.0,126.29,126.24,56.0072616]
[1741872787458,56.0072616,126.28,126.21,18.4631]
[1741872787660,56.0072616,126.27,126.21,66.5472616]
[1741872787858,56.0072616,126.27,126.21,74.4703616]
[1741872788063,56.0072616,126.26,126.21,10.54]
[1741872788268,56.0072616,126.22,126.16,7.9264]
[1741872788460,56.0072616,126.22,126.16,63.9336616]
[1741872788666,56.0072616,126.23,126.18,56.0072616]
[1741872788864,56.0072616,126.25,126.19,56.0072616]
[1741872789066,138.6072616,126.27,126.16,18.933972]
[1741872789270,82.6,126.27,126.16,18.933972]
[1741872789464,56.0072616,126.25,126.2,56.0072616]
[1741872789675,18.933972,126.2,126.15,0.063]
[1741872789982,56.0072616,126.17,126.15,0.063]
[1741872790482,56.0072616,126.2,126.15,0.063]
[1741872791258,56.0072616,126.21,126.15,56.0702616]
[1741872791457,56.0072616,126.21,126.16,56.0072616]
[1741872791653,56.0072616,126.21,126.15,0.063]
[1741872791654,82.6,126.23,126.18,56.0072616]
[1741872791858,82.6,126.27,126.21,56.0072616]
[1741872792058,82.6,126.32,126.26,56.0072616]
[1741872792364,146.5236616,126.32,126.26,56.0072616]
[1741872792573,56.0072616,126.31,126.22,18.933972]
[1741872792773,56.29158474,126.3,126.25,56.0072616]
[1741872792976,56.29158474,126.3,126.21,10.52]
[1741872792977,56.0072616,126.26,126.21,10.52]
[1741872793160,56.0072616,126.23,126.15,8.13206157]
[1741872793364,76.0072616,126.24,126.18,56.0072616]
[1741872793569,56.0072616,126.23,126.15,0.20516157]
[1741872793763,56.0072616,126.23,126.17,56.0072616]
[1741872793962,56.0072616,126.19,126.15,0.063]
[1741872794378,56.0072616,126.17,126.15,0.063]
[1741872794980,74.9412336,126.16,126.15,0.063]
[1741872795163,74.9412336,126.16,126.15,0.0001]
[1741872795677,82.8676336,126.16,126.15,0.0001]
[1741872797293,20.0,126.12,126.02,0.03]
[1741872797465,18.933972,126.1,126.02,0.03]
[1741872797781,56.0072616,126.06,126.02,0.03]
[1741872797989,82.6,126.09,126.03,56.0072616]
[1741872798169,10.62,126.12,126.06,56.0072616]
[1741872798170,18.549,126.12,126.06,56.0072616]
[1741872798365,56.0072616,126.09,126.04,56.0072616]
[1741872798676,56.0072616,126.11,126.05,56.0072616]
[1741872798880,56.0072616,126.11,126.06,56.0072616]
[1741872799171,82.6,126.13,126.07,56.0072616]
[1741872799367,56.0072616,126.16,126.11,56.0072616]
[1741872799582,56.0072616,126.15,126.05,135.3]
[1741872799894,56.0072616,126.15,126.1,56.0072616]
[1741872800075,56.0072616,126.14,126.09,56.0072616]
[1741872800277,76.0072616,126.13,126.08,56.0072616]
[1741872800488,76.0072616,126.13,126.06,56.0072616]
[1741872800489,56.0072616,126.11,126.06,56.0072616]
[1741872800676,76.0072616,126.11,126.05,56.0072616]
[1741872800989,76.0072616,126.11,126.06,56.0072616]
[1741872801284,56.0072616,126.11,126.06,56.0072616]
[1741872801466,56.0072616,126.13,126.07,56.0072616]
[1741872801799,82.6,126.15,126.09,56.0072616]
[1741872802087,56.0072616,126.16,126.1,56.0072616]
[1741872802392,56.0072616,126.15,126.1,56.0072616]
[1741872802566,56.0072616,126.15,126.09,56.0072616]
[1741872802766,7.9259,126.17,126.1,56.0072616]
[1741872803066,18.996972,126.18,126.1,56.0072616]
[1741872803067,56.0072616,126.16,126.1,56.0072616]
[1741872803378,56.0072616,126.15,126.09,56.0072616]
[1741872803565,56.0072616,126.11,126.02,0.17216157]
[1741872803768,56.0072616,126.1,126.04,56.0072616]
[1741872803975,56.0072616,126.09,126.04,56.0072616]
[1741872804286,20.0,126.1,126.05,56.0072616]
[1741872804987,56.0072616,126.09,126.03,56.0072616]
[1741872805285,56.0072616,126.07,126.02,0.03]
[1741872805484,56.0072616,126.09,126.03,56.0072616]
[1741872805669,63.9380616,126.09,126.02,0.31432314]
[1741872805862,56.0072616,126.08,126.02,56.0372616]
[1741872806075,56.0072616,126.07,126.02,0.03]
[1741872806585,56.0072616,126.05,126.02,0.03]
[1741872806883,27.90006157,126.09,126.02,0.03]
[1741872806884,56.0072616,126.04,126.02,0.03]
[1741872807084,56.0072616,126.03,126.02,0.03]
[1741872807670,56.0072616,126.04,126.02,0.03]
[1741872807875,18.79181043,126.07,126.02,0.03]
[1741872807876,20.0,126.05,126.02,0.03]
[1741872808190,76.0072616,126.04,126.02,0.03]
[1741872808392,56.0072616,126.03,126.02,0.03]
[1741872808691,56.0072616,126.03,125.95,0.28432314]
[1741872808868,20.0,126.04,125.98,56.0072616]
[1741872809081,56.0072616,126.02,125.96,56.0072616]
[1741872809465,56.0072616,126.01,125.96,56.0072616]
[1741872809667,63.9436616,126.01,125.95,56.0072616]
[1741872809873,56.0072616,126.0,125.94,56.0072616]
[1741872810201,56.0072616,126.01,125.96,56.0072616]
[1741872810374,56.0072616,126.0,125.94,56.0072616]
[1741872810568,7.9353,126.02,125.91,0.31432314]
[1741872810569,56.0072616,125.98,125.91,0.31432314]
[1741872810868,56.0072616,125.99,125.93,56.0072616]
[1741872811076,56.0072616,125.98,125.91,0.03]
[1741872811298,56.0072616,125.96,125.91,0.03]
[1741872811472,56.0072616,125.95,125.91,0.03]
[1741872811793,56.0072616,125.96,125.91,0.03]
[1741872812093,56.0072616,125.94,125.91,0.03]
[1741872812384,56.0072616,125.95,125.91,0.03]
[1741872812992,56.0072616,125.93,125.91,0.03]
[1741872813373,56.0072616,125.92,125.91,0.03]
[1741872813889,63.9487616,125.92,125.91,0.03]
[1741872814186,63.9487616,125.92,125.89,0.03]
[1741872814187,20.0,125.9,125.89,0.03]
[1741872814395,56.0072616,125.9,125.89,0.03]
[1741872815084,56.0072616,125.91,125.89,0.03]
[1741872815399,56.0072616,125.9,125.89,0.03]
[1741872815618,74.65691046,125.9,125.89,0.03]
[1741872815790,82.8840336,125.9,125.89,0.03]
[1741872815995,82.8840336,125.9,125.89,0.0001]
[1741872816172,56.0072616,125.9,125.89,0.0001]
[1741872816498,138.6072616,125.91,125.89,0.0001]
[1741872816877,56.0072616,125.91,125.89,0.0001]
[1741872817084,82.6,125.97,125.9,56.0072616]
[1741872817381,56.0072616,125.97,125.91,56.0072616]
[1741872817689,56.0072616,125.96,125.9,56.0072616]
[1741872817901,56.0072616,125.96,125.91,56.0072616]
[1741872818086,56.0072616,125.97,125.91,56.0072616]
[1741872818289,56.0072616,125.96,125.91,56.0072616]
[1741872818483,56.0072616,125.98,125.92,56.0072616]
[1741872818687,56.0072616,125.98,125.89,0.0001]
[1741872818688,56.0072616,125.97,125.91,56.0072616]
[1741872818905,56.0072616,125.98,125.93,56.0072616]
[1741872819111,56.0072616,125.99,125.93,56.0072616]
[1741872819414,56.0072616,126.01,125.95,56.0072616]
[1741872819617,56.0072616,125.97,125.92,56.0072616]
[1741872819901,56.0072616,125.95,125.9,67.0072616]
[1741872820116,56.0072616,125.96,125.9,67.0072616]
[1741872820399,18.64964886,126.01,125.93,56.0072616]
[1741872820626,56.0072616,125.97,125.9,18.9426]
[1741872820806,56.0072616,125.96,125.91,56.0072616]